lending/lending_fUSD_20250621
["ID","MTS","AMOUNT","RATE_DAILY","PERIOD"]
[366816593,1750470639919,-595.37402514,0.00026498,4]
[366816594,1750470639930,-536.10059907,0.00026498,4]
[366816595,1750470639939,-490.0,0.00026498,4]
[366816596,1750470639950,-536.79907942,0.00026498,4]
[366816597,1750470639959,-195.23269324,0.00026498,4]
[366816598,1750470639969,-571.27383803,0.00026498,4]
[366816599,1750470639979,-3225.04,0.00026498,4]
[366816600,1750470639989,-552.61950081,0.00026498,4]
[366816601,1750470639998,-490.0,0.00026498,4]
[366816602,1750470640008,-602.6,0.00026498,4]
[366816603,1750470640017,-565.33801573,0.00026498,4]
[366816604,1750470640028,-712.41,0.00026498,4]
[366816605,1750470640038,-1264.81,0.00026498,4]
[366816606,1750470640048,-490.0,0.00026498,4]
[366816607,1750470640058,-1497.65,0.00026498,4]
[366816608,1750470640068,-490.0,0.00026498,4]
[366816609,1750470640078,-490.0,0.00026498,4]
[366816610,1750470640088,-490.0,0.00026498,4]
[366816611,1750470640099,-698.88,0.00026498,4]
[366816612,1750470640108,-490.0,0.00026498,4]
[366816613,1750470640119,-490.0,0.00026498,4]
[366816614,1750470640129,-561.91,0.00026498,4]
[366816615,1750470640138,-490.0,0.00026498,4]
[366816616,1750470640148,-2717.7930042,0.000265,2]
[366816617,1750470640271,-280.0,0.00026498,4]
[366816618,1750470640687,-947.72946,0.0002577,2]
[366816619,1750470640708,-179.61035896,0.0002577,2]
[366816620,1750470640717,-490.0,0.00026497,4]
[366816621,1750470640727,-210.0,0.00026498,4]
[366816622,1750470640738,-52.38465241,0.000265,2]
[366816623,1750470640750,-1552.2784,0.000265,2]
[366816643,1750470826934,173.3,0.000247,120]
[366816644,1750470896166,182.61,0.00013699,2]
[366816645,1750470896355,182.61,0.00020187,2]
[366816649,1750471332499,174.0,0.000247,120]
[366816650,1750471585731,-300.67685,0.00022165,2]
[366816651,1750471590491,-192.79128817,0.00022165,2]
[366816652,1750471595017,-313.45712237,0.00022165,2]
[366816653,1750471685408,-152.0,0.00022164,2]
[366816654,1750471685430,-202.98616099,0.00022165,2]
[366816655,1750471692383,206.0,0.00021165,2]
[366816656,1750471775961,5036.0,0.000221,2]
[366816657,1750471782032,205.0,0.00021165,2]
[366816666,1750471832226,-1200.0,0.00022164,2]
[366816667,1750471832237,-48282.72341683,0.00022165,2]
[366816669,1750471837909,-21242.54291685,0.00022165,2]
[366816670,1750471837920,-206.0,0.00022505,4]
[366816671,1750471837932,-250.73141345,0.00022972,2]
[366816672,1750471837942,-203.17661487,0.00023,2]
[366816673,1750471837952,-195.0,0.00023712,2]
[366816674,1750471837962,-168.0,0.00023744,2]
[366816675,1750471837972,-193.0,0.00023832,2]
[366816676,1750471837982,-206.0,0.00023844,6]
[366816677,1750471837992,-193.0,0.00023953,2]
[366816678,1750471838007,-1395.0,0.00024194,2]
[366816679,1750471838019,-600.0,0.0002438,4]
[366816680,1750471838029,-193.0,0.00024395,2]
[366816681,1750471838039,-265.39,0.00024453,2]
[366816682,1750471838049,-162.38,0.00024453,2]
[366816683,1750471838059,-1099.68457525,0.000245,11]
[366816684,1750471838069,-1099.68457504,0.000245,11]
[366816685,1750471838079,-1099.68457504,0.000245,11]
[366816686,1750471838090,-1099.68457504,0.00024555,11]
[366816687,1750471838100,-250.51,0.00024809,120]
[366816688,1750471838110,-200.0,0.00024878,7]
[366816689,1750471838120,-203.13,0.00024933,2]
[366816690,1750471838130,-4809.84,0.00024956,2]
[366816691,1750471838140,-150.99,0.0002498,2]
[366816692,1750471838150,-1099.68457504,0.00025107,12]
[366816693,1750471838160,-150.0,0.00025131,2]
[366816694,1750471838170,-206.0,0.00025183,8]
[366816695,1750471838179,-193.0,0.00025232,2]
[366816696,1750471838188,-150.99,0.00025232,2]
[366816697,1750471838199,-156.567,0.00025464,2]
[366816698,1750471838210,-4095.0,0.00025464,2]
[366816699,1750471838219,-7135.0,0.00025464,2]
[366816700,1750471838229,-885.0,0.00025464,2]
[366816701,1750471838238,-10137.97,0.00025488,2]
[366816702,1750471838248,-152.91,0.00025539,2]
[366816703,1750471838258,-1957.856,0.00025541,2]
[366816704,1750471838268,-207.4,0.00025541,2]
[366816705,1750471838278,-198.25,0.00025591,120]
[366816706,1750471838288,-1000.0,0.000256,7]
[366816707,1750471838297,-168.0,0.0002562,2]
[366816708,1750471838307,-1099.68457504,0.00025659,13]
[366816709,1750471838316,-834.11677829,0.00025746,2]
[366816710,1750471838326,-168.0,0.00025763,2]
[366816711,1750471838337,-1020.61718396,0.0002577,2]
[366816712,1750471838346,-1076.08332848,0.0002577,2]
[366816713,1750471838357,-151.0,0.00025846,2]
[366816714,1750471838367,-728.36360222,0.00025846,2]
[366816715,1750471838377,-171.54577979,0.00025846,2]
[366816716,1750471838387,-168.0,0.00025848,2]
[366816717,1750471838397,-240.448,0.00025862,2]
[366816718,1750471838408,-219.073,0.00025862,2]
[366816719,1750471838419,-291.159,0.00025862,2]
[366816720,1750471838429,-250.0,0.00025862,2]
[366816721,1750471838438,-253.434,0.00025862,2]
[366816722,1750471838454,-184.229,0.00025862,2]
[366816723,1750471838464,-200.948,0.00025862,2]
[366816724,1750471838474,-244.178,0.00025862,2]
[366816725,1750471838485,-204.689,0.00025862,2]
[366816726,1750471838495,-3344.106,0.00025862,2]
[366816727,1750471838505,-946.0,0.00025862,2]
[366816728,1750471838514,-638.0,0.00025862,2]
[366816729,1750471838525,-803.0,0.00025862,2]
[366816730,1750471838535,-2005.0,0.00025862,2]
[366816731,1750471838545,-591.0,0.00025862,2]
[366816732,1750471838556,-559.0,0.00025862,2]
[366816733,1750471838566,-1278.0,0.00025862,2]
[366816734,1750471838576,-928.0,0.00025862,2]
[366816735,1750471838586,-1676.0,0.00025862,2]
[366816736,1750471838595,-1161.0,0.00025862,2]
[366816737,1750471838606,-168.0,0.00025932,2]
[366816738,1750471838617,-1046.25378038,0.0002597,2]
[366816739,1750471838628,-1006.77646404,0.0002597,2]
[366816740,1750471838638,-1037.90356665,0.0002597,2]
[366816741,1750471838649,-1029.31222786,0.0002597,2]
[366816742,1750471838659,-1216.22384866,0.0002597,2]
[366816743,1750471838669,-461.86,0.00026013,2]
[366816744,1750471838680,-461.86,0.00026013,2]
[366816745,1750471838690,-553.1,0.00026013,2]
[366816746,1750471838701,-216.48820806,0.00026133,2]
[366816747,1750471838711,-194.0,0.0002616,2]
[366816748,1750471838721,-800.0,0.00026168,7]
[366816749,1750471838732,-1425.94851022,0.00026227,2]
[366816750,1750471838741,-174.01876941,0.00026227,2]
[366816751,1750471838752,-193.0,0.00026268,7]
[366816752,1750471838763,-26800.94,0.00026274,2]
[366816753,1750471838773,-193.0,0.00026326,2]
[366816754,1750471838784,-171.52363058,0.00026356,30]
[366816755,1750471838794,-171.52363058,0.00026356,30]
[366816756,1750471838805,-361.56578944,0.000264,2]
[366816757,1750471838815,-1194.22273711,0.000264,2]
[366816758,1750471838826,-1411.36,0.000264,2]
[366816759,1750471838838,-268.42952671,0.00026439,2]
[366816760,1750471838849,-194.0,0.00026462,7]
[366816761,1750471838860,-157.292787,0.00026481,4]
[366816762,1750471838870,-170.434084,0.00026481,4]
[366816763,1750471838880,-161.308681,0.00026481,4]
[366816764,1750471838895,-1405.304683,0.00026481,4]
[366816765,1750471838905,-623.923944,0.00026481,4]
[366816766,1750471838915,-280.720845,0.00026481,4]
[366816767,1750471838928,-207.974648,0.00026481,4]
[366816768,1750471838938,-561.441691,0.00026481,4]
[366816769,1750471838948,-295.23,0.0002649,2]
[366816770,1750471838960,-151.18,0.0002649,2]
[366816771,1750471838971,-151.18,0.0002649,2]
[366816772,1750471838981,-490.0,0.00026498,4]
[366816773,1750471838991,-499.37883607,0.00026498,4]
[366816774,1750471839002,-495.04779506,0.00026498,4]
[366816775,1750471839012,-234.14474489,0.00026498,4]
[366816776,1750471839021,-490.0,0.00026498,4]
[366816777,1750471839032,-493.38726113,0.00026498,4]
[366816778,1750471839043,-502.47341467,0.00026498,4]
[366816779,1750471839053,-490.0,0.00026498,4]
[366816780,1750471839063,-493.35856918,0.00026498,4]
[366816781,1750471839073,-499.4003523,0.00026498,4]
[366816782,1750471839083,-490.0,0.00026498,4]
[366816783,1750471839093,-572.25908774,0.00026498,4]
[366816784,1750471839103,-156.17981516,0.00026498,4]
[366816785,1750471839112,-508.67982849,0.00026498,4]
[366816786,1750471839122,-490.0,0.00026498,4]
[366816787,1750471839132,-490.0,0.00026498,4]
[366816788,1750471839142,-490.0,0.00026498,4]
[366816789,1750471839152,-116.65907687,0.00026498,4]
[366816793,1750471840046,-1099.68457504,0.0002621,14]
[366816794,1750471840058,-373.34092313,0.00026498,4]
[366816795,1750471840068,-431.89851758,0.00026498,4]
[366816796,1750471840078,-275.54742766,0.00026498,4]
[366816797,1750471840088,-7000.0,0.00026498,2]
[366816798,1750471840099,-490.0,0.00026499,4]
[366816799,1750471840108,-490.0,0.00026499,4]
[366816800,1750471840119,-490.0,0.00026499,4]
[366816801,1750471840129,-490.0,0.00026499,4]
[366816802,1750471840140,-517.33284893,0.00026499,4]
[366816803,1750471840150,-1405.304683,0.00026499,4]
[366816804,1750471840160,-623.923944,0.00026499,4]
[366816805,1750471840169,-280.720845,0.00026499,4]
[366816806,1750471840179,-207.974648,0.00026499,4]
[366816807,1750471840189,-666.64,0.00026499,2]
[366816808,1750471840199,-561.441691,0.00026499,4]
[366816809,1750471840210,-490.0,0.00026499,4]
[366816810,1750471840220,-490.0,0.00026499,4]
[366816811,1750471840231,-490.0,0.00026499,4]
[366816812,1750471840241,-500.0,0.00026499,2]
[366816813,1750471840251,-490.0,0.00026499,4]
[366816814,1750471840262,-527.48330573,0.00026499,4]
[366816815,1750471840273,-490.0,0.00026499,4]
[366816816,1750471840283,-8505.08526419,0.00026499,5]
[366816817,1750471840293,-601172.15543344,0.00026499,5]
[366816818,1750471840326,-1553.4,0.00026499,5]
[366816819,1750471841826,359.68549925,0.00022065,2]
[366816837,1750471871790,221.0,0.00021165,2]
[366816838,1750471901585,203.0,0.00021165,2]
[366816839,1750471903817,250.0,0.00015,2]
[366816840,1750471906446,190.77,0.00013699,2]
[366816841,1750471906664,190.77,0.00020187,2]
[366816843,1750471992248,240.0,0.00021165,2]
[366816845,1750472245457,380.7155983,0.000247,120]
[366816858,1750472919500,150.9687654,0.0002,2]
[366816871,1750472982933,171.69,0.00013699,2]
[366816872,1750472983120,171.69,0.00020187,2]
[366816887,1750473032099,-207.0,0.00023522,2]
[366816889,1750473032110,-74.30590667,0.00024068,2]
[366816892,1750473032122,-93.69409333,0.00024068,2]
[366816894,1750473032132,-168.0,0.00024224,2]
[366816896,1750473032142,-261.16118706,0.0002469,2]
[366816897,1750473032170,-601.89954911,0.0002469,2]
[366816898,1750473032179,-207.0,0.00024925,4]
[366816899,1750473032190,-250.58,0.00025056,120]
[366816900,1750473032200,-197.76,0.00025065,2]
[366816901,1750473032210,-300.0,0.00025077,2]
[366816902,1750473032219,-250.0,0.00025077,2]
[366816903,1750473032229,-461.86,0.000251,2]
[366816904,1750473032239,-461.86,0.000251,2]
[366816905,1750473032248,-470.53,0.000251,2]
[366816906,1750473032258,-1000.0,0.00025158,2]
[366816907,1750473032268,-1638.49,0.0002521,2]
[366816908,1750473032279,-1200.0,0.00025213,2]
[366816909,1750473032289,-834.26476573,0.00025214,2]
[366816910,1750473032300,-275.95,0.00025254,2]
[366816911,1750473032309,-250.0,0.00025273,2]
[366816912,1750473032320,-397.73583266,0.00025287,2]
[366816913,1750473032334,-403.0,0.00025306,2]
[366816914,1750473032344,-300.0,0.00025353,2]
[366816915,1750473032354,-153.4,0.00025426,2]
[366816916,1750473032365,-776.35070692,0.00025473,2]
[366816917,1750473032376,-1593.96,0.00025541,2]
[366816918,1750473032386,-1957.856,0.00025541,2]
[366816919,1750473032396,-207.4,0.00025541,2]
[366816920,1750473032407,-776.35070692,0.00025596,2]
[366816921,1750473032417,-2030.296672,0.00025596,2]
[366816936,1750473032709,-1000.0,0.000256,3]
[366816938,1750473032725,-1000.0,0.000256,5]
[366816940,1750473032735,-300.0,0.00025617,2]
[366816941,1750473032745,-250.0,0.00025617,2]
[366816942,1750473032755,-2105.41764886,0.00025651,2]
[366816943,1750473032764,-300.0,0.00025691,2]
[366816944,1750473032774,-300.0,0.00025691,2]
[366816945,1750473032784,-300.0,0.00025691,2]
[366816946,1750473032794,-162.796529,0.00025691,2]
[366816947,1750473032805,-2183.31810187,0.00025706,2]
[366816948,1750473032816,-2264.10087164,0.00025761,2]
[366816949,1750473032825,-776.35070692,0.00025783,2]
[366816950,1750473032835,-2000.0,0.000258,2]
[366816951,1750473032845,-2347.87260389,0.00025816,2]
[366816952,1750473032855,-2434.74389024,0.00025871,2]
[366816953,1750473032865,-151.0,0.00025881,2]
[366816954,1750473032874,-803.0,0.00025897,2]
[366816955,1750473032884,-638.0,0.00025897,2]
[366816956,1750473032898,-559.0,0.00025897,2]
[366816957,1750473032908,-936.681,0.00025897,2]
[366816958,1750473032918,-2005.0,0.00025897,2]
[366816959,1750473032929,-594.495,0.00025897,2]
[366816960,1750473032938,-1278.0,0.00025897,2]
[366816961,1750473032948,-1676.0,0.00025897,2]
[366816962,1750473032958,-1161.0,0.00025897,2]
[366816963,1750473032968,-3335.0,0.00025897,2]
[366816964,1750473032978,-156.0,0.00025897,2]
[366816965,1750473032988,-7135.0,0.00025897,2]
[366816966,1750473032998,-502.96174134,0.000259,2]
[366816967,1750473033008,-849.97312392,0.000259,14]
[366816968,1750473033018,-2524.82941417,0.00025926,2]
[366816969,1750473033028,-4158.37374559,0.00025926,2]
[366816970,1750473033038,-153.4,0.00025942,2]
[366816971,1750473033048,-2618.2481025,0.00025981,2]
[366816972,1750473033058,-576.75861508,0.00026,2]
[366816973,1750473033073,-313.94350589,0.00026,2]
[366816974,1750473033087,-595.29787903,0.00026,2]
[366816975,1750473033098,-379.47164583,0.00026016,2]
[366816976,1750473033110,-80.94835417,0.00026016,2]
[366816977,1750473033122,-589.64318176,0.00026036,2]
[366816978,1750473033136,-2125.48010053,0.00026036,2]
[366816979,1750473033146,-49.51989947,0.00026091,2]
[366816980,1750473033159,-254.95611771,0.00026091,2]
[366816981,1750473033177,-2511.10682656,0.00026091,2]
[366816982,1750473033187,-168.0,0.00026094,2]
[366816983,1750473033198,-168.0,0.00026128,2]
[366816984,1750473033210,-2919.75940895,0.00026146,2]
[366816985,1750473033222,-1000.0,0.000262,6]
[366816986,1750473033232,-3027.79050709,0.00026201,2]
[366816987,1750473033242,-3139.81875585,0.00026256,2]
[366816988,1750473033256,-776.35070692,0.00026269,2]
[366816989,1750473033267,-3255.99204981,0.00026311,2]
[366816990,1750473033278,-207.0,0.00026328,6]
[366816991,1750473033288,-849.97312385,0.00026348,14]
[366816992,1750473033298,-3376.46375566,0.00026366,2]
[366816993,1750473033310,-1456.7505,0.0002639,2]
[366816994,1750473033321,-228.1906,0.0002639,2]
[366816995,1750473033333,-3457.08856178,0.00026399,2]
[366816996,1750473033356,-166.0,0.000264,5]
[366816997,1750473033368,-168.28,0.000264,4]
[366816998,1750473033379,-26665.49371407,0.000264,2]
[366816999,1750473033391,-13098.70024364,0.000264,2]
[366817000,1750473033407,-298.1025574,0.000264,2]
[366817001,1750473033420,-309.94912444,0.000264,2]
[366817002,1750473033433,-390.61745676,0.000264,2]
[366817003,1750473033446,-290.89052852,0.000264,2]
[366817004,1750473033482,-621.67767412,0.000264,2]
[366817010,1750473038137,-4095.0,0.00025897,2]
[366817011,1750473038148,-166.63276045,0.000263,2]
[366817012,1750473038159,-39802.54090348,0.000264,2]
[366817013,1750473038169,-160.50009943,0.000264,2]
[366817014,1750473038180,-2050.41,0.000264,2]
[366817015,1750473038190,-243.0,0.00026408,2]
[366817016,1750473038200,-7961.49823493,0.00026415,2]
[366817017,1750473038210,-3501.39291462,0.00026421,2]
[366817018,1750473038221,-167.00054489,0.00026437,2]
[366817019,1750473038231,-153.4,0.00026458,2]
[366817020,1750473038241,-501.33554623,0.00026473,2]
[366817021,1750473038252,-3630.94445246,0.00026476,2]
[366817022,1750473038262,-1264.519146,0.00026481,4]
[366817023,1750473038273,-31832.56282182,0.0002649,4]
[366817024,1750473038546,-1501.11938162,0.0002649,4]
[366817197,1750473040239,-267.70973306,0.0002649,4]
[366817575,1750473044266,-855.0,0.00025897,2]
[366817577,1750473044276,-166.63276045,0.00026358,2]
[366817579,1750473044286,-3620.5107919,0.0002649,4]
[366817585,1750473044331,-752.53100577,0.0002649,4]
[366817587,1750473044345,-10969.07364315,0.0002649,4]
[366817596,1750473044432,-3210.95097614,0.0002649,4]
[366817598,1750473044442,-2084.1699927,0.0002649,3]
[366817600,1750473044452,-310.71119593,0.00026498,2]
[366817602,1750473044462,-490.0,0.00026498,4]
[366817604,1750473044472,-505.79379012,0.00026498,4]
[366817606,1750473044483,-250.44834283,0.00026498,4]
[366817608,1750473044492,-502.47440386,0.00026498,4]
[366817610,1750473044502,-499.73541662,0.00026498,4]
[366817612,1750473044512,-214.78593868,0.00026498,4]
[366817614,1750473044524,-503.66298783,0.00026498,4]
[366817616,1750473044534,-491.39080618,0.00026498,4]
[366817618,1750473044544,-326.16253722,0.00026498,4]
[366817620,1750473044554,-497.89095973,0.00026498,4]
[366817622,1750473044563,-496.84667518,0.00026498,4]
[366817624,1750473044573,-496.41839726,0.00026498,4]
[366817626,1750473044583,-495.61455365,0.00026498,4]
[366817627,1750473044594,-496.06591364,0.00026498,4]
[366817628,1750473044603,-494.18801911,0.00026498,4]
[366817629,1750473044613,-504.51525717,0.00026498,4]
[366817630,1750473044623,-1025.90106941,0.00026498,4]
[366817631,1750473044634,-490.0,0.00026498,4]
[366817632,1750473044645,-185.99969673,0.00026498,4]
[366817633,1750473044655,-283.31115311,0.00026498,4]
[366817634,1750473044666,-507.28811908,0.00026498,4]
[366817635,1750473044676,-490.0,0.00026498,4]
[366817636,1750473044686,-490.0,0.00026498,4]
[366817637,1750473044695,-490.0,0.00026498,4]
[366817639,1750473044705,-490.0,0.00026498,4]
[366817641,1750473044715,-490.0,0.00026498,4]
[366817643,1750473044725,-490.0,0.00026498,4]
[366817645,1750473044735,-512.84716028,0.00026498,4]
[366817647,1750473044745,-490.0,0.00026498,4]
[366817649,1750473044755,-490.0,0.00026498,4]
[366817651,1750473044765,-490.0,0.00026498,4]
[366817653,1750473044774,-728.05,0.00026498,4]
[366817655,1750473044785,-490.0,0.00026498,4]
[366817657,1750473044795,-490.0,0.00026498,4]
[366817658,1750473044805,-490.0,0.00026498,4]
[366817659,1750473044816,-490.0,0.00026498,4]
[366817660,1750473044825,-490.0,0.00026498,4]
[366817661,1750473044835,-490.0,0.00026498,4]
[366817663,1750473044846,-545.03,0.00026498,4]
[366817664,1750473044856,-490.0,0.00026498,4]
[366817665,1750473044867,-510.08547795,0.00026498,4]
[366817666,1750473044877,-490.0,0.00026498,4]
[366817667,1750473044887,-693.47,0.00026498,2]
[366817668,1750473044898,-490.0,0.00026498,4]
[366817669,1750473044909,-490.0,0.00026498,4]
[366817670,1750473044919,-492.87035157,0.00026498,4]
[366817671,1750473044930,-494.65889125,0.00026498,4]
[366817672,1750473044940,-493.44004954,0.00026498,4]
[366817673,1750473044950,-490.0,0.00026498,4]
[366817675,1750473044960,-521.22098907,0.00026498,4]
[366817677,1750473044971,-490.0,0.00026498,4]
[366817679,1750473044982,-245.5402813,0.00026498,4]
[366817681,1750473044993,-490.0,0.00026498,4]
[366817682,1750473045004,-490.0,0.00026499,4]
[366817684,1750473045015,-490.0,0.00026499,4]
[366817686,1750473045025,-490.0,0.00026499,4]
[366817687,1750473045035,-490.0,0.00026499,4]
[366817688,1750473045046,-490.0,0.00026499,4]
[366817689,1750473045057,-490.0,0.00026499,4]
[366817690,1750473045067,-503.19636213,0.00026499,4]
[366817691,1750473045077,-490.0,0.00026499,4]
[366817692,1750473045087,-490.0,0.00026499,4]
[366817693,1750473045098,-490.0,0.00026499,4]
[366817694,1750473045108,-490.0,0.00026499,4]
[366817695,1750473045118,-490.0,0.00026499,4]
[366817696,1750473045128,-490.0,0.00026499,4]
[366817697,1750473045138,-490.0,0.00026499,4]
[366817698,1750473045152,-490.0,0.00026499,4]
[366817699,1750473045162,-504.55512926,0.00026499,4]
[366817700,1750473045173,-490.0,0.00026499,4]
[366817701,1750473045183,-1264.519146,0.00026499,4]
[366817702,1750473045193,-490.0,0.00026499,4]
[366817703,1750473045203,-490.0,0.00026499,4]
[366817704,1750473045212,-490.0,0.00026499,4]
[366817705,1750473045222,-490.0,0.00026499,4]
[366817706,1750473045232,-490.0,0.00026499,4]
[366817707,1750473045242,-490.0,0.00026499,4]
[366817708,1750473045251,-490.0,0.00026499,4]
[366817709,1750473045263,-490.0,0.00026499,4]
[366817710,1750473045273,-490.0,0.00026499,4]
[366817711,1750473045282,-490.0,0.00026499,4]
[366817712,1750473045292,-435.37448834,0.00026499,4]
[366817713,1750473045302,-490.0,0.00026499,4]
[366817714,1750473045312,-490.0,0.00026499,4]
[366817715,1750473045323,-490.0,0.00026499,4]
[366817716,1750473045335,-492.93057527,0.00026499,4]
[366817717,1750473045345,-490.0,0.00026499,4]
[366817718,1750473045355,-490.0,0.00026499,4]
[366817719,1750473045365,-500.0,0.00026499,4]
[366817720,1750473045375,-517.98,0.00026499,4]
[366817721,1750473045385,-490.0,0.00026499,4]
[366817722,1750473045395,-490.0,0.00026499,4]
[366817723,1750473045405,-490.0,0.00026499,4]
[366817724,1750473045415,-490.0,0.00026499,4]
[366817725,1750473045425,-490.0,0.00026499,4]
[366817726,1750473045435,-490.0,0.00026499,4]
[366817727,1750473045444,-490.0,0.00026499,4]
[366817728,1750473045453,-490.0,0.00026499,4]
[366817729,1750473045463,-490.0,0.00026499,4]
[366817730,1750473045472,-497.72201063,0.00026499,4]
[366817731,1750473045482,-2717.948,0.00026499,13]
[366817732,1750473045491,-179.825,0.00026499,13]
[366817733,1750473045501,-7000.0,0.00026499,2]
[366817734,1750473045511,-267.13,0.00026499,2]
[366817735,1750473045521,-493.77669903,0.000265,2]
[366817736,1750473045534,-5266.676087,0.000265,2]
[366817737,1750473045546,-4959.33828802,0.000265,2]
[366817738,1750473045621,-800.82437286,0.000265,2]
[366817739,1750473045633,-2670.84798289,0.000265,2]
[366817741,1750473046142,-250.0,0.00026498,4]
[366817742,1750473046154,-19566.12860484,0.000265,2]
[366817743,1750473046167,-533.0652644,0.000265,2]
[366817744,1750473046180,-418.6,0.000265,2]
[366817745,1750473046193,-2842.93835403,0.000265,2]
[366817746,1750473046206,-4026.74660037,0.000265,2]
[366817747,1750473046219,-4098.60168995,0.000265,2]
[366817748,1750473046228,-1360.51,0.000265,2]
[366817749,1750473046238,-2198.96403101,0.000265,2]
[366817750,1750473046250,-2245.76792475,0.000265,2]
[366817751,1750473046266,-3266.04780473,0.000265,2]
[366817752,1750473046278,-1001.99756983,0.000265,2]
[366817753,1750473046291,-1604.5604668,0.000265,2]
[366817754,1750473046360,-946.21225572,0.000265,2]
[366817755,1750473046416,-253.40828031,0.000265,2]
[366817756,1750473046471,-34950.4537155,0.000265,2]
[366817757,1750473046482,-1389.4466618,0.00026518,3]
[366817758,1750473046492,-694.7233309,0.00026518,3]
[366817759,1750473046502,-5557.7866472,0.00026527,3]
[366817760,1750473046511,-834.26476573,0.00026527,3]
[366817761,1750473046522,-694.7233309,0.00026528,3]
[366817762,1750473046532,-490.0,0.00026528,4]
[366817763,1750473046542,-212.85228486,0.00026528,4]
[366817764,1750473046552,-490.0,0.00026528,4]
[366817765,1750473046562,-490.0,0.00026528,4]
[366817766,1750473046572,-627.42700134,0.00026528,4]
[366817767,1750473046583,-403.02688846,0.00026528,4]
[366817768,1750473046593,-490.0,0.00026528,4]
[366817769,1750473046603,-490.0,0.00026528,4]
[366817770,1750473046613,-500.0,0.00026528,4]
[366817771,1750473046623,-490.0,0.00026528,4]
[366817772,1750473046633,-490.0,0.00026528,4]
[366817773,1750473046642,-490.0,0.00026528,4]
[366817774,1750473046652,-3411.77,0.00026528,4]
[366817775,1750473046662,-490.0,0.00026528,4]
[366817776,1750473046672,-490.0,0.00026528,4]
[366817777,1750473046684,-490.0,0.00026528,4]
[366817778,1750473046694,-490.0,0.00026528,4]
[366817779,1750473046704,-490.0,0.00026528,4]
[366817780,1750473046714,-490.0,0.00026528,4]
[366817781,1750473046724,-516.99477332,0.00026528,4]
[366817782,1750473046733,-490.0,0.00026528,4]
[366817783,1750473046743,-490.0,0.00026528,4]
[366817784,1750473046753,-490.0,0.00026528,4]
[366817785,1750473046763,-595.8,0.00026528,4]
[366817786,1750473046773,-503.81,0.00026528,4]
[366817787,1750473046783,-490.0,0.00026528,4]
[366817788,1750473046793,-1449.42,0.00026528,4]
[366817789,1750473046802,-619.76441526,0.00026528,4]
[366817790,1750473046812,-490.0,0.00026528,4]
[366817791,1750473046822,-490.0,0.00026528,4]
[366817792,1750473046832,-490.0,0.00026528,4]
[366817793,1750473046842,-655.25,0.00026528,4]
[366817794,1750473046852,-490.0,0.00026528,4]
[366817795,1750473046863,-490.0,0.00026528,4]
[366817796,1750473046873,-490.0,0.00026528,4]
[366817797,1750473046883,-527.7,0.00026528,4]
[366817798,1750473046893,-490.0,0.00026528,4]
[366817799,1750473046903,-490.0,0.00026528,4]
[366817800,1750473046912,-490.0,0.00026528,4]
[366817801,1750473046922,-490.0,0.00026528,4]
[366817802,1750473046932,-490.0,0.00026528,4]
[366817803,1750473046943,-490.0,0.00026528,4]
[366817804,1750473046954,-490.0,0.00026528,4]
[366817805,1750473046964,-3856.73,0.00026528,4]
[366817806,1750473046974,-490.0,0.00026528,4]
[366817807,1750473046983,-861.55,0.00026528,4]